fUSD/lending_fUSD_20240913
["ID","MTS","AMOUNT","RATE_DAILY","PERIOD"]
[337955540,1726215055598,-500.0,0.00014916,2]
[337955541,1726215055607,-607.84,0.00014916,2]
[337955542,1726215055617,-531.69,0.00014916,2]
[337955543,1726215055627,-500.0,0.00014916,2]
[337955544,1726215055636,-761.87,0.00014916,2]
[337955545,1726215055646,-500.0,0.00014916,2]
[337955546,1726215055655,-667.65,0.00014916,2]
[337955547,1726215055665,-500.0,0.00014916,2]
[337955548,1726215055675,-500.0,0.00014916,2]
[337955549,1726215055684,-500.0,0.00014916,2]
[337955550,1726215055694,-900.43,0.00014916,2]
[337955551,1726215055704,-500.0,0.00014916,2]
[337955552,1726215055714,-500.0,0.00014916,2]
[337955553,1726215055724,-1039.22,0.00014916,2]
[337955554,1726215055733,-523.34,0.00014916,2]
[337955555,1726215055743,-500.0,0.00014916,2]
[337955556,1726215055752,-500.0,0.00014916,2]
[337955557,1726215055762,-500.0,0.00014916,2]
[337955558,1726215055771,-500.0,0.00014916,2]
[337955559,1726215055781,-624.63,0.00014916,2]
[337955560,1726215055790,-500.0,0.00014916,2]
[337955561,1726215055800,-500.0,0.00014916,2]
[337955562,1726215055810,-500.0,0.00014916,2]
[337955563,1726215055819,-500.0,0.00014916,2]
[337955564,1726215055829,-500.0,0.00014916,2]
[337955565,1726215055839,-500.0,0.00014916,2]
[337955566,1726215055848,-500.0,0.00014916,2]
[337955567,1726215055857,-500.0,0.00014916,2]
[337955568,1726215055867,-518.77,0.00014916,2]
[337955569,1726215055876,-569.31,0.00014916,2]
[337955570,1726215055885,-729.1,0.00014916,2]
[337955571,1726215055895,-640.0,0.00014916,2]
[337955572,1726215055905,-500.0,0.00014916,2]
[337955573,1726215055914,-500.0,0.00014916,2]
[337955574,1726215055923,-881.65,0.00014916,2]
[337955575,1726215055932,-500.0,0.00014916,2]
[337955576,1726215055942,-500.0,0.00014916,2]
[337955577,1726215055951,-500.0,0.00014916,2]
[337955578,1726215055961,-999.98,0.00014916,2]
[337955579,1726215055970,-500.0,0.00014916,2]
[337955580,1726215055979,-559.62,0.00014916,2]
[337955581,1726215055988,-500.0,0.00014916,2]
[337955582,1726215055997,-500.0,0.00014916,2]
[337955583,1726215056006,-515.85,0.00014916,2]
[337955584,1726215056016,-500.0,0.00014916,2]
[337955585,1726215056026,-500.0,0.00014916,2]
[337955586,1726215056036,-598.57534632,0.00014916,2]
[337955587,1726215056047,-500.0,0.00014916,2]
[337955588,1726215056057,-500.0,0.00014916,2]
[337955589,1726215056067,-500.0,0.00014916,2]
[337955590,1726215056076,-611.85,0.00014916,2]
[337955591,1726215056086,-500.0,0.00014916,2]
[337955592,1726215056095,-500.0,0.00014916,2]
[337955593,1726215056105,-500.0,0.00014916,2]
[337955594,1726215056114,-500.0,0.00014916,2]
[337955595,1726215056123,-1686.59,0.00014916,2]
[337955596,1726215056133,-836.38,0.00014916,2]
[337955597,1726215056142,-500.0,0.00014916,2]
[337955598,1726215056151,-639.18,0.00014916,2]
[337955599,1726215056161,-500.0,0.00014916,2]
[337955600,1726215056172,-912.53,0.00014916,2]
[337955601,1726215056182,-765.06,0.00014916,2]
[337955602,1726215056193,-500.0,0.00014916,2]
[337955603,1726215056204,-731.7,0.00014916,2]
[337955604,1726215056212,-500.0,0.00014916,2]
[337955605,1726215056222,-1072.37,0.00014916,2]
[337955606,1726215056233,-500.0,0.00014916,2]
[337955607,1726215056242,-582.6,0.00014916,2]
[337955608,1726215056253,-937.43,0.00014916,2]
[337955609,1726215056263,-1358.16,0.00014916,2]
[337955610,1726215056274,-500.0,0.00014916,2]
[337955611,1726215056284,-1011.25,0.00014916,2]
[337955612,1726215056345,-657.82,0.00014916,2]
[337955613,1726215056355,-565.63,0.00014916,2]
[337955614,1726215056364,-728.8,0.00014916,2]
[337955615,1726215056373,-500.0,0.00014916,2]
[337955616,1726215056385,-1395.0,0.00014916,2]
[337955617,1726215056394,-1008.79,0.00014916,2]
[337955618,1726215056403,-265.45,0.00014916,2]
[337955619,1726215056412,-772.7,0.00014916,2]
[337955620,1726215056421,-954.42,0.00014916,2]
[337955621,1726215056430,-561.91,0.00014916,2]
[337955622,1726215056439,-844.41,0.00014916,2]
[337955623,1726215056449,-723.06,0.00014916,2]
[337955624,1726215056458,-630.01,0.00014916,2]
[337955625,1726215056467,-728.96,0.00014916,2]
[337955626,1726215056476,-546.09,0.00014916,2]
[337955627,1726215056486,-821.29,0.00014916,2]
[337955628,1726215056495,-539.21,0.00014916,2]
[337955629,1726215056503,-500.0,0.00014916,2]
[337955630,1726215056515,-2451.71,0.00014916,2]
[337955631,1726215056524,-1002.37,0.00014916,2]
[337955632,1726215056533,-500.0,0.00014916,2]
[337955633,1726215056544,-2196.8,0.00014916,2]
[337955634,1726215056553,-500.0,0.00014916,2]
[337955635,1726215056562,-448.39071246,0.00014916,2]
[337955636,1726215056571,-927.19,0.00014916,2]
[337955637,1726215056580,-632.69,0.00014916,2]
[337955638,1726215056589,-567.01,0.00014916,2]
[337955639,1726215056598,-1077.13,0.00014916,2]
[337955640,1726215056607,-705.72,0.00014916,2]
[337955641,1726215056616,-657.8,0.00014916,2]
[337955642,1726215056625,-500.0,0.00014916,2]
[337955643,1726215056634,-2304.45,0.00014916,2]
[337955644,1726215056643,-500.0,0.00014916,2]
[337955645,1726215056652,-500.0,0.00014916,2]
[337955646,1726215056661,-500.0,0.00014916,2]
[337955647,1726215056670,-2081.77,0.00014916,2]
[337955648,1726215056679,-555.07,0.00014916,2]
[337955649,1726215056688,-3984.62,0.00014916,2]
[337955650,1726215056697,-1259.45,0.00014916,2]
[337955651,1726215056706,-1388.79,0.00014916,2]
[337955652,1726215056715,-515.33,0.00014916,2]
[337955653,1726215056724,-529.02,0.00014916,2]
[337955654,1726215056733,-1160.88,0.00014916,2]
[337955655,1726215056742,-9159.22,0.00014916,2]
[337955656,1726215056751,-500.0,0.00014916,2]
[337955657,1726215056760,-500.0,0.00014916,2]
[337955658,1726215056770,-1378.69,0.00014916,2]
[337955659,1726215056780,-500.0,0.00014916,2]
[337955660,1726215056789,-546.42,0.00014916,2]
[337955661,1726215056799,-500.0,0.00014916,2]
[337955662,1726215056810,-512.21,0.00014916,2]
[337955663,1726215056820,-1969.34,0.00014916,2]
[337955664,1726215056830,-500.0,0.00014916,2]
[337955665,1726215056839,-500.0,0.00014916,2]
[337955666,1726215056848,-510.12,0.00014916,2]
[337955667,1726215056858,-1718.15,0.00014916,2]
[337955668,1726215056868,-500.0,0.00014916,2]
[337955669,1726215056877,-500.0,0.00014916,2]
[337955670,1726215056887,-930.15,0.00014916,2]
[337955671,1726215056896,-995.15,0.00014916,2]
[337955672,1726215056906,-500.0,0.00014916,2]
[337955673,1726215056915,-507.67,0.00014916,2]
[337955674,1726215056924,-500.0,0.00014916,2]
[337955675,1726215056934,-166.25370753,0.00014916,2]
[337955676,1726215056943,-500.0,0.00014916,2]
[337955677,1726215056953,-1499.63,0.00014916,2]
[337955678,1726215056963,-816.89,0.00014916,2]
[337955679,1726215056972,-963.72,0.00014916,2]
[337955680,1726215056981,-647.64,0.00014916,2]
[337955681,1726215056990,-159.67210952,0.00014986,2]
[337955682,1726215056999,-152.63421667,0.00014986,2]
[337955683,1726215057009,-211.57729312,0.00014986,2]
[337955684,1726215057018,-157.68045194,0.00014986,2]
[337955685,1726215057028,-1000.0,0.00014999,2]
[337955686,1726215057037,-1000.0,0.00014999,2]
[337955687,1726215057046,-1000.0,0.00014999,2]
[337955688,1726215057056,-1000.0,0.00014999,2]
[337955689,1726215057065,-1000.0,0.00014999,2]
[337955690,1726215057074,-1000.0,0.00014999,2]
[337955691,1726215057083,-1000.0,0.00014999,2]
[337955692,1726215057093,-1000.0,0.00014999,2]
[337955693,1726215057102,-1000.0,0.00014999,2]
[337955694,1726215057111,-47462.11059452,0.00015,2]
[337955695,1726215057121,-3021170.14816713,0.00015,2]
[337955696,1726215057366,-500.0,0.00013818,2]
[337955697,1726215057376,-500.0,0.0001464,2]
[337955698,1726215057387,-191.52643236,0.00014916,2]
[337955699,1726215057402,-500.0,0.00013544,2]
[337955700,1726215057412,-338.67356764,0.00014916,2]
[337955701,1726215057421,-64750.24422695,0.00015,2]
[337955702,1726215057434,-1009.7100724,0.00015,2]
[337955703,1726215057641,-500.0,0.00013818,2]
[337955704,1726215057651,-82.025172,0.00014092,2]
[337955705,1726215057663,-417.974828,0.00014092,2]
[337955706,1726215057672,-500.0,0.00014092,2]
[337955707,1726215057682,-500.0,0.00014366,2]
[337955708,1726215057692,-359.754372,0.00014366,2]
[337955709,1726215057722,-140.245628,0.00014366,2]
[337955710,1726215057731,-330.73538219,0.0001464,2]
[337955711,1726215057998,-169.26461781,0.0001464,2]
[337955712,1726215058008,-500.0,0.0001464,2]
[337955713,1726215058018,-500.0,0.00014914,2]
[337955714,1726215058027,-207.53726355,0.00014914,2]
[337955715,1726215058044,-292.46273645,0.00014914,2]
[337955716,1726215058054,-500.0,0.00014914,2]
[337955717,1726215058063,-28215.47246726,0.00015,2]
[337955718,1726215058075,-23586.16601673,0.00015,2]
[337955719,1726215058088,-29684.31084554,0.00015,2]
[337955720,1726215059104,-1732.75946269,0.00015,2]
[337955721,1726215060014,-3518.04920049,0.00015,2]
[337955722,1726215109829,501.11035913,0.00011164,2]
[337955723,1726215131953,500.0,0.00011164,2]
[337955730,1726215482174,1000.0,0.00012,2]
[337955731,1726215514313,292.29,0.00010775,2]
[337955732,1726215765266,980.81,0.00012149,2]
[337955733,1726215818425,798.96,0.00012159,2]
[337955734,1726215833158,360.0,0.00012164,2]
[337955735,1726215856021,528.83321755,0.00012091,2]
[337955736,1726216051750,163.9,0.00011868,2]
[337955737,1726216051967,163.9,0.00011875,2]
[337955738,1726216052397,163.9,0.00011883,2]
[337955739,1726216052601,163.9,0.0001189,2]
[337955740,1726216052819,163.9,0.00011898,2]
[337955741,1726216053042,163.9,0.00011905,2]
[337955742,1726216053242,163.9,0.00011913,2]
[337955743,1726216053458,163.9,0.0001192,2]
[337955744,1726216053663,163.9,0.00011927,2]
[337955745,1726216085796,250.0,0.00012048,2]
[337955746,1726216101234,-3099.20867714,0.00012182,2]
[337955747,1726216101304,-3785.05650387,0.00012182,2]
[337955752,1726216126234,-3922.7418075,0.00012182,2]
[337955755,1726216126312,-2839.66507199,0.00012182,2]
[337955756,1726216151344,-300.0,0.00012181,2]
[337955758,1726216151371,-2164.36563479,0.00012182,2]
[337955760,1726216151405,-4057.98994508,0.00012182,2]
[337955761,1726216176875,-4020.97235963,0.00012182,2]
[337955762,1726216176903,-164.41,0.00012188,2]
[337955763,1726216176930,-3.05469705,0.00012191,2]
[337955764,1726216176971,-392.42530295,0.00012191,2]
[337955765,1726216176999,-62.34692154,0.00012197,2]
[337955779,1726216231386,-105.87307846,0.00012197,2]
[337955780,1726216231396,-200.0,0.00012197,2]
[337955781,1726216231407,-250.39362631,0.0001221,2]
[337955782,1726216231419,-567.54,0.0001221,2]
[337955783,1726216231431,-810.86298749,0.0001221,2]
[337955784,1726216231442,-371.2033862,0.0001221,2]
[337955785,1726216231451,-237.46,0.00012283,2]
[337955786,1726216231460,-290.019435,0.000123,2]
[337955787,1726216231469,-12.7771788,0.000123,4]
[337955788,1726216231480,-854.80884198,0.000123,4]
[337955789,1726216231504,-2332.41397922,0.000123,4]
[337955790,1726216231514,-77.46283892,0.000124,4]
[337955791,1726216231567,-840.48699877,0.000124,4]
[337955792,1726216231579,-857.30470671,0.000124,4]
[337955793,1726216231591,-2221.6149552,0.000124,4]
[337955794,1726216231624,-2403.1305004,0.000124,4]
[337955796,1726216231634,-709.73794996,0.000125,4]
[337955798,1726216231646,-415.98592689,0.000125,4]
[337955803,1726216237744,-250.0,0.00012265,2]
[337955804,1726216237754,-8474.27612315,0.000125,4]
[337955805,1726216237763,-12900.0,0.000126,4]
[337955806,1726216237772,-16100.0,0.000127,4]
[337955807,1726216237782,-3200.0,0.000128,4]
[337955808,1726216237791,-170.81,0.00012845,2]
[337955809,1726216237801,-640.0,0.00012861,2]
[337955810,1726216237810,-95412.82427119,0.0001288,2]
[337955811,1726216237820,-3200.0,0.000129,4]
[337955812,1726216237830,-4548.7,0.00012996,2]
[337955813,1726216237839,-500.0,0.00012999,2]
[337955814,1726216237849,-500.0,0.00012999,2]
[337955815,1726216237859,-530.58,0.00012999,2]
[337955816,1726216237869,-322.35845655,0.00012999,2]
[337955817,1726216237878,-500.0,0.00012999,2]
[337955818,1726216237887,-500.0,0.00012999,2]
[337955819,1726216237896,-500.0,0.00012999,2]
[337955820,1726216237915,-1299.27,0.00012999,2]
[337955821,1726216237924,-550.71,0.00012999,2]
[337955822,1726216237933,-595.42,0.00012999,2]
[337955823,1726216237943,-500.0,0.00012999,2]
[337955824,1726216237952,-500.0,0.00012999,2]
[337955825,1726216237961,-500.0,0.00012999,2]
[337955826,1726216237970,-500.0,0.00012999,2]
[337955827,1726216237980,-500.0,0.00012999,2]
[337955828,1726216237994,-7780.37,0.00012999,2]
[337955829,1726216238004,-500.0,0.00012999,2]
[337955830,1726216238013,-658.44,0.00012999,2]
[337955832,1726216238022,-500.0,0.00012999,2]
[337955833,1726216238032,-1118.55,0.00012999,2]
[337955834,1726216238042,-500.0,0.00012999,2]
[337955836,1726216238051,-925.0,0.00013,2]
[337955838,1726216238060,-43193.11910645,0.00013,2]
[337955840,1726216238071,-796.78,0.00013,2]
[337955842,1726216238081,-4673108.66037273,0.00013,2]
[337955845,1726216238092,-1392889.44958267,0.00013,2]
[337955847,1726216238103,-2860194.37344418,0.00013,2]
[337955969,1726216239449,-500.0,0.00012999,2]
[337955971,1726216239459,-4711.0963308,0.00013,2]
[337955973,1726216239471,-970.49511104,0.00013,2]
[337955976,1726216239483,-5691.99408374,0.00013,2]
[337955978,1726216239495,-16876.40537994,0.00013,2]
[337955997,1726216239672,-290.816448,0.00013,2]
[337956287,1726216242436,-1194.67,0.00012999,2]
[337956290,1726216242446,-5066.75364388,0.00013,2]
[337956294,1726216242457,-701.11,0.00013,2]
[337956380,1726216243414,-20226.84112589,0.00013,2]
[337956382,1726216243425,-5976.22869519,0.00013,2]
[337956384,1726216243436,-11444.947811,0.00013,2]
[337956387,1726216243456,-6599.15486515,0.00013,2]
[337956389,1726216243468,-376213.93059568,0.00013,2]
[337956392,1726216243480,-5753.72585808,0.00013,2]
[337956394,1726216243491,-550.55,0.00013,2]
[337958823,1726216270199,581.18,0.00011752,2]
[337959025,1726216282037,500.0,0.00011164,2]
[337959026,1726216293936,277.67,0.00010292,2]
[337959027,1726216460624,172.73,0.00011752,2]
[337959028,1726216715383,960.68,0.00011752,2]
[337959029,1726216759648,490.4,0.00011752,2]
[337959030,1726216829467,243.99,0.00010959,2]
[337959032,1726216870196,293.52,0.00010712,2]
[337959035,1726217258152,733.78,0.00012122,2]
[337959036,1726217284323,625.57,0.00012162,2]
[337959037,1726217291588,233.39425541,0.00012101,2]
[337959039,1726217312392,1050.0,0.00011,2]
[337959041,1726217339765,250.0,0.00012106,2]
[337959042,1726217371243,1239.47,0.00012039,2]
[337959043,1726217373456,315.36,0.00010121,2]
[337959062,1726217401754,156.45,0.00010959,2]
[337959077,1726217424025,23900.0,0.00012081,2]
[337959079,1726217431649,-164.33,0.00012181,2]
[337959080,1726217431659,-257.37,0.00012203,2]
[337959081,1726217431668,-187.93404358,0.00012352,2]
[337959082,1726217431679,-305.81156811,0.00012352,2]
[337959083,1726217431688,-450.2265389,0.00012352,2]
[337959084,1726217431699,-49.7734611,0.00012352,2]
[337959085,1726217431709,-250.0,0.00012352,2]
[337959086,1726217431718,-315.36,0.00012385,2]
[337959087,1726217431727,-567.57745603,0.00012391,2]
[337959088,1726217431739,-432.42254397,0.00012391,2]
[337959089,1726217431749,-400.0,0.000124,4]
[337959090,1726217431758,-250.0,0.00012431,2]
[337959091,1726217431767,-900.0,0.000125,4]
[337959092,1726217431779,-201.27,0.00012504,2]
[337959093,1726217431789,-1400.0,0.000126,4]
[337959094,1726217431799,-208.86,0.0001261,2]
[337959095,1726217431808,-1530.87778462,0.000127,4]
[337959096,1726217431820,-369.12221538,0.000127,4]
[337959097,1726217431830,-200.0,0.00012763,2]
[337959098,1726217431839,-2400.0,0.000128,4]
[337959099,1726217431849,-400.0,0.000129,4]
[337959100,1726217431859,-319.21099951,0.000129,2]
[337959101,1726217431868,-150.99,0.00012973,2]
[337959102,1726217431877,-391.80936884,0.00012973,2]
[337959103,1726217431887,-152.70542532,0.00012973,2]
[337959104,1726217431898,-347.29457468,0.00012973,2]
[337959105,1726217431907,-428.5534956,0.00012973,2]
[337959106,1726217431919,-71.4465044,0.00012973,2]
[337959107,1726217431928,-150.0,0.00012989,2]
[337959108,1726217431937,-155.01,0.0001299,2]
[337959109,1726217431946,-155.01,0.0001299,2]
[337959110,1726217431955,-155.01,0.0001299,2]
[337959111,1726217431964,-155.01,0.0001299,2]
[337959112,1726217431974,-155.01,0.0001299,2]
[337959113,1726217431983,-155.01,0.0001299,2]
[337959114,1726217431992,-155.01,0.0001299,2]
[337959115,1726217432002,-155.01,0.0001299,2]
[337959116,1726217432011,-155.01,0.0001299,2]
[337959117,1726217432020,-155.01,0.0001299,2]
[337959118,1726217432030,-155.01,0.0001299,2]
[337959119,1726217432039,-155.01,0.0001299,2]
[337959120,1726217432048,-155.01,0.0001299,2]
[337959121,1726217432057,-155.01,0.0001299,2]
[337959122,1726217432066,-500.0,0.00012999,2]
[337959123,1726217432076,-500.0,0.00012999,2]
[337959124,1726217432085,-500.0,0.00012999,2]
[337959125,1726217432094,-500.0,0.00012999,2]
[337959126,1726217432103,-477.13964635,0.00012999,2]
[337959127,1726217432112,-489.97103638,0.00012999,2]
[337959128,1726217432121,-500.0,0.00012999,2]
[337959129,1726217432131,-500.0,0.00012999,2]
[337959130,1726217432419,-500.0,0.00012999,2]
[337959131,1726217432428,-500.0,0.00012999,2]
[337959132,1726217432438,-500.0,0.00012999,2]
[337959133,1726217432447,-500.0,0.00012999,2]
[337959134,1726217432456,-500.0,0.00012999,2]
[337959135,1726217432465,-518.29,0.00012999,2]
[337959136,1726217432474,-500.0,0.00012999,2]
[337959137,1726217432483,-500.0,0.00012999,2]
[337959138,1726217432492,-500.0,0.00012999,2]
[337959139,1726217432501,-500.0,0.00012999,2]
[337959140,1726217432511,-500.0,0.00012999,2]
[337959141,1726217432521,-500.0,0.00012999,2]
[337959142,1726217432530,-500.0,0.00012999,2]
[337959143,1726217432539,-1063.23,0.00012999,2]
[337959144,1726217432548,-500.0,0.00012999,2]
[337959145,1726217432557,-500.0,0.00012999,2]
[337959146,1726217432566,-500.0,0.00012999,2]
[337959147,1726217432576,-500.0,0.00012999,2]
[337959148,1726217432585,-626.79,0.00012999,2]
[337959149,1726217432594,-500.0,0.00012999,2]
[337959150,1726217432603,-500.0,0.00012999,2]
[337959151,1726217432612,-500.0,0.00012999,2]
[337959152,1726217432621,-500.0,0.00012999,2]
[337959153,1726217432631,-500.0,0.00012999,2]
[337959154,1726217432640,-500.0,0.00012999,2]
[337959155,1726217432649,-500.0,0.00012999,2]
[337959156,1726217432658,-500.0,0.00012999,2]
[337959157,1726217432667,-500.0,0.00012999,2]
[337959158,1726217432676,-500.0,0.00012999,2]
[337959159,1726217432686,-500.0,0.00012999,2]
[337959160,1726217432695,-500.0,0.00012999,2]
[337959161,1726217432704,-500.0,0.00012999,2]
[337959162,1726217432714,-500.0,0.00012999,2]
[337959163,1726217432723,-219.16,0.00012999,2]
[337959164,1726217432732,-730.74,0.00012999,2]
[337959165,1726217432741,-507.91,0.00012999,2]
[337959166,1726217432750,-500.0,0.00012999,2]
[337959167,1726217432759,-500.0,0.00012999,2]
[337959168,1726217432768,-500.0,0.00012999,2]
[337959169,1726217432777,-643.87563006,0.00012999,2]
[337959170,1726217432786,-500.0,0.00012999,2]
[337959171,1726217432796,-500.0,0.00012999,2]
[337959172,1726217432805,-500.0,0.00012999,2]
[337959173,1726217432814,-555.76,0.00012999,2]
[337959174,1726217432824,-500.0,0.00012999,2]
[337959175,1726217432833,-500.0,0.00012999,2]
[337959176,1726217432842,-500.0,0.00012999,2]
[337959177,1726217432851,-500.0,0.00012999,2]
[337959178,1726217432861,-500.0,0.00012999,2]
[337959179,1726217432870,-500.0,0.00012999,2]
[337959180,1726217432879,-500.0,0.00012999,2]
[337959181,1726217432889,-500.0,0.00012999,2]
[337959182,1726217432899,-500.0,0.00012999,2]
[337959183,1726217432908,-500.0,0.00012999,2]
[337959184,1726217432917,-500.0,0.00012999,2]
[337959185,1726217432926,-500.0,0.00012999,2]
[337959186,1726217432935,-20478.501,0.00012999,2]
[337959187,1726217432944,-500.0,0.00012999,2]
[337959188,1726217432953,-500.0,0.00012999,2]
[337959189,1726217432962,-500.0,0.00012999,2]
[337959190,1726217432971,-500.0,0.00012999,2]
[337959191,1726217432980,-500.0,0.00012999,2]
[337959192,1726217432990,-472.51130361,0.00012999,2]
[337959193,1726217433000,-500.0,0.00012999,2]
[337959194,1726217433009,-500.0,0.00012999,2]
[337959195,1726217433018,-500.0,0.00012999,2]
[337959196,1726217433027,-500.0,0.00012999,2]
[337959197,1726217433037,-500.0,0.00012999,2]
[337959198,1726217433047,-500.0,0.00012999,2]
[337959199,1726217433056,-500.0,0.00012999,2]
[337959200,1726217433066,-500.0,0.00012999,2]
[337959201,1726217433075,-500.0,0.00012999,2]
[337959202,1726217433084,-736.12,0.00012999,2]
[337959203,1726217433094,-500.0,0.00012999,2]
[337959204,1726217433104,-500.0,0.00012999,2]
[337959205,1726217433113,-446.57738811,0.00012999,2]
[337959206,1726217433123,-500.0,0.00012999,2]
[337959207,1726217433132,-500.0,0.00012999,2]
[337959208,1726217433142,-500.0,0.00012999,2]
[337959209,1726217433151,-806.43,0.00012999,2]
[337959210,1726217433161,-500.0,0.00012999,2]
[337959211,1726217433170,-516.45,0.00012999,2]
[337959212,1726217433180,-500.0,0.00012999,2]
[337959213,1726217433189,-500.0,0.00012999,2]
[337959214,1726217433199,-500.0,0.00012999,2]
[337959215,1726217433209,-500.0,0.00012999,2]
[337959216,1726217433218,-500.0,0.00012999,2]
[337959217,1726217433227,-624.5,0.00012999,2]
[337959218,1726217433237,-500.0,0.00012999,2]
[337959219,1726217433247,-600.29,0.00012999,2]
[337959220,1726217433257,-500.0,0.00012999,2]
[337959221,1726217433268,-708.32,0.00012999,2]
[337959222,1726217433278,-500.0,0.00012999,2]
[337959223,1726217433287,-596.19,0.00012999,2]
[337959224,1726217433297,-194.28893417,0.00012999,2]
[337959225,1726217433306,-636.28,0.00012999,2]
[337959226,1726217433316,-500.0,0.00012999,2]
[337959227,1726217433325,-500.0,0.00012999,2]
[337959228,1726217433334,-796.43,0.00012999,2]
[337959229,1726217433344,-500.0,0.00012999,2]
[337959230,1726217433355,-500.0,0.00012999,2]
[337959231,1726217433364,-1144.89,0.00012999,2]
[337959232,1726217433374,-500.0,0.00012999,2]
[337959233,1726217433384,-500.0,0.00012999,2]
[337959234,1726217433394,-592.43,0.00012999,2]
[337959235,1726217433403,-1523.99,0.00012999,2]
[337959236,1726217433412,-682.64,0.00012999,2]
[337959237,1726217433422,-500.0,0.00012999,2]
[337959238,1726217433432,-551.89,0.00012999,2]
[337959239,1726217433441,-5812.06,0.00012999,2]
[337959240,1726217433451,-500.0,0.00012999,2]
[337959241,1726217433462,-8829.06,0.00012999,2]
[337959242,1726217433472,-500.0,0.00012999,2]
[337959243,1726217433482,-500.0,0.00012999,2]
[337959244,1726217433491,-500.0,0.00012999,2]
[337959245,1726217433501,-714.56,0.00012999,2]
[337959246,1726217433511,-664.02,0.00012999,2]
[337959247,1726217433520,-962.03,0.00012999,2]
[337959248,1726217433530,-879.33,0.00012999,2]
[337959249,1726217433540,-500.0,0.00012999,2]
[337959250,1726217433550,-716.3,0.00012999,2]
[337959251,1726217433560,-598.12,0.00012999,2]
[337959252,1726217433570,-500.0,0.00012999,2]
[337959253,1726217433579,-541.92,0.00012999,2]
[337959254,1726217433589,-988.13,0.00012999,2]
[337959255,1726217433599,-500.0,0.00012999,2]
[337959256,1726217433608,-839.63,0.00012999,2]
[337959257,1726217433618,-500.0,0.00012999,2]
[337959258,1726217433628,-512.16,0.00012999,2]
[337959259,1726217433637,-500.0,0.00012999,2]
[337959260,1726217433647,-500.0,0.00012999,2]
[337959261,1726217433656,-646.37,0.00012999,2]
[337959262,1726217433666,-1556.07,0.00012999,2]
[337959263,1726217433675,-2680.25,0.00012999,2]
[337959264,1726217433685,-569.69,0.00012999,2]
[337959265,1726217433694,-500.0,0.00012999,2]
[337959266,1726217433704,-500.0,0.00012999,2]
[337959267,1726217433714,-500.0,0.00012999,2]
[337959268,1726217433724,-500.0,0.00012999,2]
[337959269,1726217433734,-500.0,0.00012999,2]
[337959270,1726217433744,-500.0,0.00012999,2]
[337959271,1726217433754,-1736.63,0.00012999,2]
[337959272,1726217433764,-547.33,0.00012999,2]
[337959273,1726217433774,-585.0,0.00012999,2]
[337959274,1726217433787,-500.0,0.00012999,2]
[337959275,1726217433797,-1632.32,0.00012999,2]
[337959276,1726217433806,-500.0,0.00012999,2]
[337959277,1726217433816,-516.23,0.00012999,2]
[337959278,1726217433827,-762.97,0.00012999,2]